[Event "Chhattisgarh Masters GM 2022"]
[Site "Chhattisgarh"]
[Date "2022.09.21"]
[Round "3.4"]
[White "Gusain, Himal"]
[Black "Aronyak Ghosh"]
[Result "1/2-1/2"]
[ECO "D12"]
[WhiteElo "2359"]
[BlackElo "2519"]
[Annotator "TA"]
[PlyCount "33"]
[EventDate "2022.09.19"]
[EventCountry "IND"]
[SourceTitle "playchess.com"]
[Source "ChessBase"]
[SourceQuality "1"]
[TimeControl "5400+30"]

{[%evp 9,33,10,12,8,19,6,10,8,8,0,3,6,25,10,11,5,20,0,25,0,21,0,17,0,13,0]} 1. c4 {[%emt 0:00:06]} c6 {[%emt 0:07:22]} 2. Nf3 {[%emt 0:01:21]} d5 {[%emt 0:00:40]} 3. e3 {[%emt 0:00:12]} Nf6 {[%emt 0:00:47]} 4. d4 {[%emt 0:03:48]} Bf5 {[%emt 0:01:35]} 5. Bd3 {[%emt 0:03:16]} e6 {[%emt 0:07:18]} 6. O-O {[%emt 0:00:45] D12: Slav Defence: 3 Nf3 Nf6 4 e3 Bf5.} Nbd7 {[%emt 0:03:42]} 7. b3 {[%emt 0:01:26]} Bd6 {[%emt 0:04:46]} 8. Bxf5 {[%emt 0:10:00]} exf5 {[%emt 0:00:05]} 9. Ba3 {[%emt 0:00:06]} Bxa3 {[%emt 0:00:39]} 10. Nxa3 {[%emt 0:00:05]} Qe7 {[%emt 0:00:03]} 11. Qc1 {[%emt 0:02:38]} O-O {[%emt 0:00:46] [#]} 12. Qb2 $146 {[%emt 0:00:40]} ({Predecessor:} 12. cxd5 cxd5 13. Qb2 Rac8 14. Rac1 a6 15. Rxc8 Rxc8 16. Rc1 Qf8 17. Nc2 h6 18. Nce1 {½-½ (44) Sejdini,V (1788)-Mueller,D (1796) Nordrheinwestfalen 2017}) 12... a5 {[%emt 0:05:40]} 13. Nc2 {[%emt 0:00:23]} Ne4 {[%emt 0:00:05]} 14. Na3 {[%emt 0:00:16]} Nef6 {[%emt 0:00:03] The position is equal.} 15. Nc2 {[%emt 0:00:08]} Ne4 {[%emt 0:00:02]} 16. Na3 {[%emt 0:00:07]} Nef6 {[%emt 0:00:03]} 17. Nc2 {[%emt 0:00:30] Not much happened in this game.  Weighted Error Value: White=0.12 (very precise) /Black=0.06 (flawless)} 1/2-1/2

[Event "Chhattisgarh Masters GM 2022"]
[Site "Chhattisgarh"]
[Date "2022.09.21"]
[Round "3.4"]
[White "Jaiswal, Rupesh"]
[Black "Srinath, Rao S.V."]
[Result "0-1"]
[ECO "C06"]
[WhiteElo "2107"]
[BlackElo "2317"]
[Annotator "TA"]
[PlyCount "64"]
[EventDate "2022.09.19"]
[EventCountry "IND"]
[SourceTitle "playchess.com"]
[Source "ChessBase"]
[SourceQuality "1"]
[TimeControl "5400+30"]

{[%evp 13,64,12,14,-7,-23,-31,-50,-63,-24,-39,-39,-52,-31,-67,-70,-80,-42,-40,-32,-32,-36,-22,-22,-60,-77,-62,-75,-94,-106,-306,-313,-317,-331,-318,-225,-313,-319,-297,-294,-297,-276,-304,-317,-308,-309,-374,-267,-267,-275,-406,-400,-452,-451]} 1. e4 {[%emt 0:00:04]} e6 {[%emt 0:00:15]} 2. d4 {[%emt 0:00:02]} d5 {[%emt 0:00:07]} 3. Nd2 {[%emt 0:00:02]} Be7 {[%emt 0:02:10]} 4. Ngf3 {[%emt 0:00:27]} Nf6 {[%emt 0:01:13]} 5. e5 {[%emt 0:00:04]} Nfd7 {[%emt 0:00:04]} 6. Bd3 {[%emt 0:00:06]} c5 {[%emt 0:00:18]} 7. c3 {[%emt 0:00:15]} Nc6 {[%emt 0:00:13]} 8. Qe2 {[%emt 0:06:12] C06: French Tarrasch: 3...Nf6 4 e5 Nfd7 5 Bd3 main lines.} Qb6 {[%emt 0:01:11][%cal Rc5d4]} 9. dxc5 {[%emt 0:06:31]} Qc7 {[%emt 0:00:50][%cal Rc6e5] [#]} 10. O-O $146 {[%emt 0:04:48] Black is slightly better.} ({Predecessor:} 10. Bb5 O-O 11. Bxc6 bxc6 12. b4 a5 13. Nb3 Ba6 14. Qe3 axb4 15. cxb4 f6 16. Nbd4 fxe5 17. Nxe6 {0-1 (34) Romero Barreto,J (2355)-Saldano Dayer,H (2413) Villa Martelli 2021}) 10... Ndxe5 {[%emt 0:00:57]} 11. Nxe5 {[%emt 0:00:07]} Nxe5 {[%emt 0:00:14]} 12. Bb5+ {[%emt 0:00:47]} Bd7 {[%emt 0:01:52]} 13. Bxd7+ {[%emt 0:03:41]} Nxd7 {[%emt 0:00:07]} 14. b4 {[%emt 0:00:31]} O-O {[%emt 0:07:48]} 15. c4 {[%emt 0:07:28]} Bf6 {[%emt 0:02:05]} 16. Rb1 {[%emt 0:00:11]} b6 $36 {[%emt 0:02:51][%mdl 2048] Black is pushing.} 17. cxd5 {[%emt 0:06:22]} exd5 {[%emt 0:00:20]} 18. Nb3 {[%emt 0:02:44]} bxc5 {[%emt 0:02:32]} 19. bxc5 {[%emt 0:06:26]} Nxc5 {[%emt 0:00:51][%cal Bd7c5,Bc5b3,Bb3d4,Bd4e2,Be2c3][%mdl 32]} 20. Ba3 {[%emt 0:04:37]} Nxb3 {[%emt 0:02:58] Black is more active.} 21. Bxf8 $2 {[%emt 0:04:42] Now White is beyond hope.} (21. axb3 $17 Rfe8 22. Qd3) 21... Nd4 $19 {[%emt 0:00:18][%mdl 64] [#] Zwischenzug} 22. Qh5 {[%emt 0:00:16]} Rxf8 {[%emt 0:00:07]} 23. Qxd5 {[%emt 0:00:14]} Ne2+ {[%emt 0:01:54]} 24. Kh1 {[%emt 0:00:58]} Nc3 {[%emt 0:00:07][%csl LRb1,LRd5]} 25. Qb7 {[%emt 0:00:31]} Qa5 {[%emt 0:08:23]} 26. Rb2 {[%emt 0:17:09]} Nxa2 {[%emt 0:02:03]} 27. Rb5 {[%emt 0:00:27]} Qa4 {[%emt 0:00:51]} 28. Rc5 {[%emt 0:01:46]} Nc3 {[%emt 0:02:15]} 29. Qc7 {[%emt 0:01:38]} Ne4 {[%emt 0:03:13]} 30. Rc4 {[%emt 0:07:43]} Qb5 {[%emt 0:01:14]} 31. Rcc1 {[%emt 0:02:43]} (31. Qc6 {was the only chance.} Qxc6 32. Rxc6) 31... a5 {[%emt 0:02:18][%cal Oe4c3]} 32. f3 {[%emt 0:01:52] [#]} Nc3 $1 {[%emt 0:02:41] Weighted Error Value: White=0.33/Black=0.10 (very precise)} 0-1

[Event "Chhattisgarh Masters GM 2022"]
[Site "Chhattisgarh"]
[Date "2022.09.21"]
[Round "3.4"]
[White "Kumar, Gaurav"]
[Black "Omidi, Arya"]
[Result "0-1"]
[ECO "C06"]
[WhiteElo "2073"]
[BlackElo "2309"]
[Annotator "TA"]
[PlyCount "65"]
[EventDate "2022.09.19"]
[EventCountry "IND"]
[SourceTitle "playchess.com"]
[Source "ChessBase"]
[SourceQuality "1"]
[TimeControl "5400+30"]

{[%evp 13,65,8,18,-1,2,-43,-52,-72,-45,-48,-42,-49,-36,-59,-77,-70,-39,-25,-37,-43,-35,-28,-37,-72,-78,-62,-72,-101,-110,-308,-288,-317,-319,-326,-233,-322,-312,-290,-310,-291,-263,-306,-293,-308,-283,-412,-281,-281,-276,-404,-389,-517,-517,-569]} 1. e4 {[%emt 0:00:04]} e6 {[%emt 0:00:15]} 2. d4 {[%emt 0:00:02]} d5 {[%emt 0:00:07]} 3. Nd2 {[%emt 0:00:02]} Be7 {[%emt 0:02:10]} 4. Ngf3 {[%emt 0:00:27]} Nf6 {[%emt 1:29:58]} 5. e5 {[%emt 0:00:04]} Nfd7 {[%emt 0:00:04]} 6. Bd3 {[%emt 0:00:06]} c5 {[%emt 0:00:18]} 7. c3 {[%emt 0:00:15]} Nc6 {[%emt 0:00:13]} 8. Qe2 {[%emt 0:06:12] C06: French Tarrasch: 3...Nf6 4 e5 Nfd7 5 Bd3 main lines.} Qb6 {[%emt 0:01:11][%cal Rc5d4]} 9. dxc5 {[%emt 1:27:48]} Qc7 {[%emt 0:00:50][%cal Rd7e5] [#]} 10. O-O $146 {[%emt 0:04:48] Black is slightly better.} ({Predecessor:} 10. Bb5 O-O 11. Bxc6 bxc6 12. b4 a5 13. Nb3 Ba6 14. Qe3 axb4 15. cxb4 f6 16. Nbd4 fxe5 17. Nxe6 {0-1 (34) Romero Barreto,J (2355)-Saldano Dayer,H (2413) Villa Martelli 2021}) 10... Ndxe5 {[%emt 0:00:57]} 11. Nxe5 {[%emt 0:00:07]} Nxe5 {[%emt 0:00:14]} 12. Bb5+ {[%emt 0:00:47]} Bd7 {[%emt 0:01:52]} 13. Bxd7+ {[%emt 0:03:41]} Nxd7 {[%emt 0:00:07]} 14. b4 {[%emt 0:00:31]} O-O {[%emt 0:07:48]} 15. c4 {[%emt 0:07:28]} Bf6 {[%emt 0:02:05]} 16. Rb1 {[%emt 0:00:11]} b6 $36 {[%emt 0:02:51][%mdl 2048] Black is more active.} 17. cxd5 {[%emt 0:06:22]} exd5 {[%emt 0:00:20]} 18. Nb3 {[%emt 0:02:44]} bxc5 {[%emt 0:02:32]} 19. bxc5 {[%emt 0:06:26]} Nxc5 {[%emt 0:00:51][%cal Bd7c5,Bc5b3,Bb3d4,Bd4e2,Be2c3][%mdl 32]} 20. Ba3 {[%emt 0:04:37]} Nxb3 {[%emt 0:02:58]} 21. Bxf8 {[%emt 0:04:42] White does not recover from this.} (21. axb3 $17 Rfc8 22. Bb2) 21... Nd4 $19 {[%emt 0:00:18][%mdl 64] [#] Zwischenzug} 22. Qh5 {[%emt 0:00:16]} Rxf8 {[%emt 0:00:07]} 23. Qxd5 {[%emt 0:45:37]} Ne2+ {[%emt 0:01:54]} 24. Kh1 {[%emt 0:00:58]} Nc3 {[%emt 0:00:07][%csl LRb1,LRd5]} 25. Qb7 {[%emt 0:00:31]} Qa5 {[%emt 1:11:38]} 26. Rb2 {[%emt 0:17:09]} Nxa2 {[%emt 0:02:03]} 27. Rb5 {[%emt 0:00:27]} Qa4 {[%emt 0:00:51]} 28. Rc5 {[%emt 0:01:46]} Nc3 {[%emt 1:01:51]} 29. Qc7 {[%emt 0:01:38]} (29. Qc6 $142 Qd4 30. g3) 29... Ne4 {[%emt 0:03:13]} 30. Rc4 {[%emt 0:07:43]} Qb5 {[%emt 0:01:14]} 31. Rcc1 {[%emt 0:02:43]} (31. Qc6 {only move.} Qxc6 32. Rxc6) 31... a5 {[%emt 0:02:18]} 32. f3 {[%emt 0:01:52] [#]} Nc3 {[%emt 0:02:41]} 33. Rg1 {[%emt 0:15:36] Weighted Error Value: White=0.45/Black=0.12 (very precise)} (33. Rf2 Be5) 0-1

[Event "Chhattisgarh Masters GM 2022"]
[Site "Chhattisgarh"]
[Date "2022.09.21"]
[Round "3.5"]
[White "Koustav Chatterjee"]
[Black "Panesar Vedant"]
[Result "1/2-1/2"]
[ECO "C50"]
[WhiteElo "2513"]
[BlackElo "2336"]
[Annotator "TA"]
[PlyCount "62"]
[EventDate "2022.09.19"]
[EventCountry "IND"]
[SourceTitle "playchess.com"]
[Source "ChessBase"]
[SourceQuality "1"]
[TimeControl "5400+30"]

{[%evp 9,62,14,26,17,25,12,27,16,33,16,20,18,16,4,8,1,6,-18,-10,-15,-18,-13,-21,-6,-27,-10,0,-19,-18,-16,-7,-13,-27,-38,-23,-21,-8,-29,0,-54,-37,-46,-32,-37,-25,-20,-12,-13,-12,-15,0,0,0,0,0]} 1. e4 {[%emt 0:04:17]} e5 {[%emt 0:02:02]} 2. Bc4 {[%emt 0:00:29]} Nf6 {[%emt 0:00:15]} 3. d3 {[%emt 0:00:07]} Nc6 {[%emt 0:00:07]} 4. Nf3 {[%emt 0:00:07]} Bc5 {[%emt 0:00:09]} 5. O-O {[%emt 0:00:58]} a6 {[%emt 0:01:51]} 6. a4 {[%emt 0:01:00] C50: Hungarian Defence and Giuoco Pianissimo.} Ba7 {[%emt 0:02:01]} 7. c3 {[%emt 0:10:32]} d6 {[%emt 0:00:42]} 8. Re1 {[%emt 0:00:24] White has an edge.} O-O {[%emt 0:00:32][%cal Ob7b5]} 9. h3 {[%emt 0:00:08]} Ne7 {[%emt 0:06:51]} 10. d4 {[%emt 0:01:38]} Ng6 {[%emt 0:01:56]} 11. Nbd2 {[%emt 0:00:30]} c6 {[%emt 0:02:44] 11...c6 has lost popularity.} 12. Bb3 {[%emt 0:04:10]} exd4 {[%emt 0:05:15]} 13. Nxd4 {[%emt 0:15:46]} Re8 {[%emt 0:02:23]} 14. Bc2 {[%emt 0:00:33]} d5 {[%emt 0:08:48]} 15. exd5 {[%emt 0:01:33]} Rxe1+ {[%emt 0:01:17]} 16. Qxe1 {[%emt 0:00:05] [#]} Bxd4 $146 {[%emt 0:00:34]} ({Predecessor:} 16... Nxd5 17. N2f3 Bd7 18. Bg5 Qf8 19. Qd2 Qd6 20. Re1 h6 21. Be3 Nxe3 22. Qxe3 Re8 {0-1 (73) Arjun,K (2477)-Visakh,N (2516) Chess.com INT 2020}) 17. cxd4 {[%emt 0:00:10]} Qxd5 {[%emt 0:00:36][%cal Oc8h3]} 18. Qe3 {[%emt 0:17:26]} Bf5 {[%emt 0:11:51]} 19. Bb3 {[%emt 0:01:14]} Qd7 {[%emt 0:01:22] Hoping for ...Re8.} 20. Nf3 {[%emt 0:05:49]} (20. Nc4 {is more complex.} Re8 21. Ne5 Qc7 22. Bd2) 20... Nd5 {[%emt 0:04:08]} 21. Qg5 {[%emt 0:07:53]} Re8 {[%emt 0:03:19]} 22. Qg3 {[%emt 0:04:49]} Qd8 {[%emt 0:17:24]} 23. a5 {[%emt 0:09:47]} Nf6 {[%emt 0:04:17]} 24. Be3 {[%emt 0:06:35]} (24. Ng5 $11 Nd5 25. Nf3) 24... Ne4 {[%emt 0:01:36]} 25. Qh2 {[%emt 0:00:03][%cal Od4d5]} Be6 {[%emt 0:01:11][%cal Bf5e6,Be6d5,Bd5e4][%mdl 32]} 26. Bc2 {[%emt 0:00:25]} Bd5 {[%emt 0:00:07]} 27. Ne5 {[%emt 0:02:01]} Qe7 {[%emt 0:02:53] The position is equal.} 28. Bxe4 {[%emt 0:02:44]} Bxe4 {[%emt 0:00:45]} 29. Nxg6 {[%emt 0:00:31]} hxg6 {[%emt 0:00:17]} 30. Bd2 {[%emt 0:00:35] Against Qb4} Bd5 {[%emt 0:03:13]} 31. Qf4 {[%emt 0:00:05]} Qe4 {[%emt 0:01:41] Weighted Error Value: White=0.08 (flawless) /Black=0.07 (flawless)} 1/2-1/2

[Event "Chhattisgarh Masters GM 2022"]
[Site "Chhattisgarh"]
[Date "2022.09.21"]
[Round "3.5"]
[White "Neelash Saha"]
[Black "Mahalakshmi D M"]
[Result "1-0"]
[ECO "D95"]
[WhiteElo "2454"]
[BlackElo "1145"]
[Annotator "TA"]
[PlyCount "97"]
[EventDate "2022.09.19"]
[EventCountry "IND"]
[SourceTitle "playchess.com"]
[Source "ChessBase"]
[SourceQuality "1"]
[TimeControl "5400+30"]

{[%evp 12,97,11,9,27,7,7,6,10,-25,-28,-37,-39,-40,-57,-143,-149,-184,-187,-165,-149,-168,-31,-41,-29,-22,-37,-60,-63,-67,52,66,181,176,247,261,316,314,312,317,306,275,368,262,259,165,164,137,170,137,134,131,206,177,502,230,248,236,189,122,534,503,471,462,616,570,597,560,745,785,967,940,12833,12835,12833,12834,12834,12686,12835,12835,12834,12835,12835,12762,12831,10193,12845,12845]} 1. Nf3 {[%emt 0:01:23]} Nf6 {[%emt 0:01:01]} 2. e3 {[%emt 0:00:05]} d5 {[%emt 0:00:30]} 3. c4 {[%emt 0:00:11]} c6 {[%emt 0:00:46]} 4. d4 {[%emt 0:00:31]} g6 {[%emt 0:01:21]} 5. Nc3 {[%emt 0:00:36]} Bg7 {[%emt 0:00:44]} 6. Qb3 {[%emt 0:00:40]} O-O {[%emt 0:01:04]} 7. Be2 {[%emt 0:00:13]} Qb6 {[%emt 0:06:39] D95: Grünfeld: 4 Nf3 Bg7 5 e3 0-0 6 Qb3.} 8. Qa3 {[%emt 0:05:22]} Re8 {[%emt 0:02:32]} 9. Bd2 {[%emt 0:00:07]} Bg4 {[%emt 0:03:50] [#] The position is equal.} 10. h3 $146 {[%emt 0:03:17]} ({Predecessor:} 10. cxd5 cxd5 11. h3 Bxf3 12. Bxf3 e6 13. Na4 Qc7 14. O-O Nc6 15. Rfc1 Rec8 16. Rc2 {1-0 (78) Iturrizaga Bonelli,E (2625)-Oliva Castaneda,K (2488) Linares 2015}) 10... Bxf3 {[%emt 0:00:39]} 11. Bxf3 {[%emt 0:00:05][%cal Rc4d5]} dxc4 {[%emt 0:01:01]} 12. Be2 {[%emt 0:00:44]} Nbd7 {[%emt 0:07:47]} 13. f4 {[%emt 0:06:35] Inhibits e5.} (13. Bxc4 $15 e5 14. d5) 13... c5 $17 {[%emt 0:10:55]} 14. d5 {[%emt 0:00:06]} e6 {[%emt 0:03:22]} 15. dxe6 {[%emt 0:00:12]} Qxe6 {[%emt 0:00:36]} 16. Bf3 {[%emt 0:00:06]} Rad8 {[%emt 0:08:53]} ({Better is} 16... Rab8 $1 $19 {And now ...b5 would win.} 17. Qxa7 Qe7) 17. Rd1 $15 {[%emt 0:02:02]} Nb6 {[%emt 0:04:02]} 18. O-O $1 {[%emt 0:03:53]} Nfd5 {[%emt 0:03:40]} ({But not} 18... Rxd2 19. Rxd2 Qxe3+ 20. Rdf2 $14) 19. Nxd5 {[%emt 0:08:58]} Nxd5 {[%emt 0:00:12]} 20. e4 {[%emt 0:00:39]} Nb6 {[%emt 0:06:41]} (20... Bd4+ $15 21. Kh2 Ne7) 21. e5 $14 {[%emt 0:00:44]} f6 {[%emt 0:03:29]} ({Black should play} 21... g5 $14) 22. Qxa7 $18 fxe5 {[%emt 0:20:25]} (22... Ra8 {is a better defense.} 23. Qxb7 Rab8) 23. Ba5 $1 {[%emt 0:01:28]} Nc8 {[%emt 0:01:40]} 24. Qxb7 {[%emt 0:00:20]} Rxd1 {[%emt 0:02:12]} 25. Rxd1 {[%emt 0:00:12]} ({Inferior is} 25. Bxd1 Nd6 26. Qc6 e4 $11) 25... Ne7 {[%emt 0:00:07]} 26. Bc3 {[%emt 0:02:45] This bishop pair is nice.} Qf5 {[%emt 0:07:13]} 27. Rd7 {[%emt 0:01:56]} Bf6 {[%emt 0:01:42]} 28. fxe5 {[%emt 0:00:39]} Bxe5 {[%emt 0:00:42]} 29. Bxe5 $40 {[%emt 0:05:40][%mdl 128] White attacks with force.} ({Not} 29. Rxe7 Qb1+ 30. Kf2 Qc2+ 31. Kg1 Qb1+ 32. Kf2 Qc2+ 33. Kg1 Qb1+ $11) 29... Qxe5 {[%emt 0:00:09]} 30. Qe4 {[%emt 0:00:26] Inhibits Qe1+.} Qxe4 {[%emt 0:00:50]} 31. Bxe4 $16 {[%emt 0:00:05][%mdl 4096] Endgame KRB-KRN} Kf8 {[%emt 0:00:38] [#]} (31... Kg7 $16 {keeps fighting.} 32. a4 Kf6) 32. a4 $1 $18 {[%emt 0:00:22] Strongly threatening a5.} Rb8 $2 {[%emt 0:00:31]} (32... Ng8 {is a better chance.}) 33. Rb7 {[%emt 0:05:23]} (33. a5 $142) 33... Rxb7 {[%emt 0:00:15]} 34. Bxb7 {[%emt 0:00:05] a5 is the strong threat. KB-KN} Ke8 {[%emt 0:00:15] [#]} 35. Ba6 {[%emt 0:02:07]} (35. Kf2 $1 $18) 35... Kd8 $2 {[%emt 0:00:29][%mdl 8192]} (35... c3 $16 {is tougher.} 36. bxc3 Kd8) 36. Bxc4 {[%emt 0:00:06] White is clearly winning.} Kc7 {[%emt 0:00:02]} 37. Kf2 {[%emt 0:03:02]} Kb6 {[%emt 0:00:27]} 38. Ke3 {[%emt 0:00:43]} Ka5 {[%emt 0:00:54]} 39. b3 {[%emt 0:00:35]} Kb4 {[%emt 0:00:18]} 40. Ke4 {[%emt 0:00:34]} Nf5 {[%emt 0:01:23]} 41. Kd5 {[%emt 0:00:00] Black must now prevent Kc6.} Ne7+ {[%emt 0:00:00]} 42. Kd6 {[%emt 0:00:00]} Nf5+ {[%emt 0:00:00]} 43. Kc6 {[%emt 0:00:00]} Ne7+ {[%emt 0:00:00]} 44. Kb6 {[%emt 0:00:00]} Nc8+ {[%emt 0:00:00]} 45. Kc7 {[%emt 0:00:00]} Ne7 {[%emt 0:00:00]} 46. g4 {[%emt 0:00:00]} g5 {[%emt 0:00:00]} 47. Bf7 {[%emt 0:00:00]} c4 {[%emt 0:00:00]} 48. bxc4 {[%emt 0:00:00]} Kxa4 {[%emt 0:00:00]} 49. Kd7 {[%emt 0:00:00] Quite a comeback for White.  Weighted Error Value: White=0.24 (precise) /Black=0.65} 1-0

[Event "Chhattisgarh Masters GM 2022"]
[Site "Chhattisgarh"]
[Date "2022.09.21"]
[Round "3.5"]
[White "Vrashank Chouhan"]
[Black "Chakravarthi Reddy, M."]
[Result "0-1"]
[ECO "E91"]
[WhiteElo "2056"]
[BlackElo "2306"]
[Annotator "TA"]
[PlyCount "82"]
[EventDate "2022.09.19"]
[EventCountry "IND"]
[SourceTitle "playchess.com"]
[Source "ChessBase"]
[SourceQuality "1"]
[TimeControl "5400+30"]

{[%evp 12,82,54,35,64,38,54,34,46,45,37,43,32,39,77,27,31,19,27,11,11,5,5,0,53,53,44,16,6,0,-8,-114,-102,-126,-121,-156,-148,-257,-254,-243,-232,-337,-343,-325,-335,-319,-145,-164,-106,-106,-106,-104,-113,-110,-110,-231,-87,-404,-364,-427,-427,-427,-415,-383,-147,-170,-116,-448,-370,-635,-629,-589,-564]} 1. d4 {[%emt 0:00:02]} Nf6 {[%emt 0:00:06]} 2. c4 {[%emt 0:01:44]} g6 {[%emt 0:00:42]} 3. Nc3 {[%emt 0:00:06]} Bg7 {[%emt 0:00:17]} 4. e4 {[%emt 0:00:06]} d6 {[%emt 0:00:03]} 5. Be2 {[%emt 0:00:10]} O-O {[%emt 0:00:58]} 6. Be3 {[%emt 0:00:05]} Na6 {[%emt 0:01:10]} 7. Nf3 {[%emt 0:08:15]} c5 {[%emt 0:00:18] E91: King's Indian: Classical: 6 Be2, unusual replies including 6...c5 and 6...Bg4.} 8. d5 {[%emt 0:01:25]} (8. O-O {feels hotter.} Ng4 9. Bg5 cxd4 10. Nxd4 Nc5 11. Rb1) 8... e6 {[%emt 0:00:29]} 9. O-O {[%emt 0:00:42]} exd5 {[%emt 0:00:03] White is slightly better.} 10. cxd5 {[%emt 0:00:11]} Re8 {[%emt 0:00:09]} 11. Nd2 {[%emt 0:00:46]} Nc7 {[%emt 0:02:14][%cal Ob7b5]} 12. a4 {[%emt 0:00:44] Prevents b5.} a6 {[%emt 0:00:23]} 13. h3 {[%emt 0:07:43]} (13. Bf4 $16) 13... Rb8 $11 {[%emt 0:00:39]} 14. a5 {[%emt 0:01:18]} Bd7 {[%emt 0:06:26]} 15. Bf4 {[%emt 0:16:41]} Bb5 {[%emt 0:03:06]} 16. Re1 {[%emt 0:09:15]} Bxe2 {[%emt 0:08:22]} 17. Rxe2 {[%emt 0:00:02]} Nh5 {[%emt 0:00:08]} ({Black should try} 17... Nb5 $1 $11) 18. Bh2 $1 $14 {[%emt 0:03:52]} Nb5 {[%emt 0:01:41]} 19. Nxb5 {[%emt 0:07:36]} (19. Rc1 {with more complications.} Bh6 20. Nc4 Qg5 21. Rb1) 19... axb5 {[%emt 0:00:48] [#]} 20. g4 $146 {[%emt 0:06:48]} ({Predecessor:} 20. Qb3 Qd7 21. a6 Ra8 22. a7 Be5 23. Bxe5 Rxe5 24. Ra5 Nf4 25. Re3 Rg5 26. g4 {0-1 (42) Pena Canapa,A (1829)-Palacio,E (1656) Montevideo 2019}) 20... Nf6 {[%emt 0:05:27][%cal Bh5f6,Bf6d7,Bd7c5,Bc5e4][%mdl 32]} ({Don't take} 20... Bxb2 21. Rb1 Be5 22. gxh5 (22. Bxe5 Rxe5 23. gxh5 Rxh5 $16) 22... Qg5+ 23. Kh1 Bxh2 24. Kxh2 $16) 21. f4 {[%emt 0:02:43]} (21. e5 $11 {remains equal.} dxe5 22. Rxe5) 21... Ra8 $17 {[%emt 0:04:40]} 22. Qe1 {[%emt 0:03:23]} Rxa5 {[%emt 0:04:03]} 23. Rd1 {[%emt 0:00:07]} c4 {[%emt 0:09:06] Black is more active.} 24. Kh1 {[%emt 0:04:07]} (24. Bg3 $17 {was forced.}) 24... Nd7 $19 {[%emt 0:02:44]} 25. e5 {[%emt 0:06:03]} Nc5 {[%emt 0:02:04]} 26. exd6 {[%emt 0:02:25]} (26. e6 {might work better.}) 26... Rxe2 {[%emt 0:16:26]} 27. Qxe2 {[%emt 0:00:03]} Qxd6 {[%emt 0:00:05]} ({Not} 27... Bxb2 28. Bg1 Qxd6 29. Bxc5 Qxc5 30. Ne4 $17) 28. Ne4 {[%emt 0:01:41]} Qe7 {[%emt 0:00:26]} (28... Nxe4 $19 29. Qxe4 Bxb2) 29. d6 $17 {[%emt 0:05:41] [#]} Qxe4+ {[%emt 0:00:03]} (29... Qe6 $1 $19 30. f5 Qxe4+ 31. Qxe4 Nxe4) 30. Qxe4 {[%emt 0:00:05]} Nxe4 {[%emt 0:00:04]} 31. d7 {[%emt 0:00:05]} Bf6 {[%emt 0:00:06] aiming for ...Nf2+.} 32. d8=Q+ {[%emt 0:00:06]} Bxd8 {[%emt 0:00:09]} 33. Rxd8+ {[%emt 0:00:04][%mdl 4096] Endgame KRB-KRN} Kg7 {[%emt 0:00:09]} 34. g5 $2 {[%emt 0:13:26][%mdl 8192]} (34. Bg1 $17) 34... f5 {[%emt 0:11:51] Threatens to win with ...Ra2.} 35. Rd7+ {[%emt 0:00:00]} Kg8 {[%emt 0:01:30] ...Ra2 is the strong threat.} 36. Bg1 {[%emt 0:00:00]} Ra2 {[%emt 0:02:14]} 37. Bd4 {[%emt 0:00:00] Against c3} Ra1+ $2 {[%emt 0:00:02]} (37... b4 $19 {has better winning chances.} 38. Rg7+ Kf8 39. Rxb7 c3 40. bxc3 bxc3) 38. Kg2 {[%emt 0:00:00] [#]} Rd1 {[%emt 0:00:22]} (38... b6 $1 $19 {White must now prevent ...b4.} 39. Rg7+ Kf8) 39. Kf3 $2 {[%emt 0:00:00][%mdl 8192]} (39. Rg7+ $17 Kf8 40. Be5) 39... Rd3+ $19 {[%emt 0:05:09]} 40. Ke2 $2 {[%emt 0:00:00]} (40. Kg2 b4 41. Rg7+ Kf8 42. Be5) 40... Ng3+ {[%emt 0:00:14]} 41. Kf2 {[%emt 0:00:00]} Nh5 {[%emt 0:00:03][%csl LRf4,LRh3] Against Rg7+.  Weighted Error Value: White=0.52/Black=0.22 (precise)} 0-1